[Event "Live Chess"]
[Site "Chess.com"]
[Date "2020.05.16"]
[Round "1.11"]
[White "Keetman, Keetman, Maaikee"]
[Black "Norinkeviciute, Rasa"]
[Result "0-1"]
[ECO "B07"]
[WhiteElo "2150"]
[BlackElo "2063"]
[PlyCount "82"]
[EventDate "2020.??.??"]
[TimeControl "180+2"]
[WhiteClock "0:00:27"]
[BlackClock "0:00:05"]

1. e4 {[%emt 0:00:01]} d6 {[%emt 0:00:02]} 2. d4 {[%emt 0:00:02]} Nf6 {[%emt 0:
00:02]} 3. Nc3 {[%emt 0:00:02]} Nbd7 {[%emt 0:00:02]} 4. Nf3 {[%emt 0:00:03]}
c6 {[%emt 0:00:01]} 5. e5 {[%emt 0:00:17]} Ng8 {[%emt 0:00:17]} 6. Bf4 {
[%emt 0:00:09]} Qc7 {[%emt 0:00:02]} 7. Qe2 {[%emt 0:00:24]} e6 {[%emt 0:00:02]
} 8. O-O-O {[%emt 0:00:05]} d5 {[%emt 0:00:05]} 9. g3 {[%emt 0:00:16]} a6 {
[%emt 0:00:09]} 10. h4 {[%emt 0:00:09]} c5 {[%emt 0:00:10]} 11. Nxd5 {[%emt 0:
00:21]} Qa5 {[%emt 0:00:12]} 12. Nc3 {[%emt 0:00:08]} cxd4 {[%emt 0:00:11]} 13.
Nxd4 {[%emt 0:00:02]} Bb4 {[%emt 0:00:01]} 14. Nb3 {[%emt 0:00:15]} Qc7 {
[%emt 0:00:05]} 15. Ne4 {[%emt 0:00:09]} Nxe5 {[%emt 0:01:06]} 16. a3 {[%emt 0:
00:36]} Be7 {[%emt 0:00:03]} 17. Bg2 {[%emt 0:00:09]} f6 {[%emt 0:00:25]} 18.
Rhe1 {[%emt 0:00:03]} Kf7 {[%emt 0:00:08]} 19. Kb1 {[%emt 0:00:07]} Nh6 {
[%emt 0:00:07]} 20. Bxh6 {[%emt 0:00:03]} gxh6 {[%emt 0:00:01]} 21. Qh5+ {
[%emt 0:00:01]} Kg7 {[%emt 0:00:02]} 22. g4 {[%emt 0:00:02]} Ng6 {[%emt 0:00:
03]} 23. g5 {[%emt 0:00:03]} hxg5 {[%emt 0:00:02]} 24. hxg5 {[%emt 0:00:01]} f5
{[%emt 0:00:02]} 25. Qh6+ {[%emt 0:00:05]} Kf7 {[%emt 0:00:01]} 26. Ng3 {
[%emt 0:00:05]} Rb8 {[%emt 0:00:03]} 27. Nd4 {[%emt 0:00:03]} b5 {[%emt 0:00:
02]} 28. Nh5 {[%emt 0:00:01]} Bf8 {[%emt 0:00:03]} 29. Ng7 {[%emt 0:00:11]}
Bxg7 {[%emt 0:00:01]} 30. Qh3 {[%emt 0:00:01]} Rd8 {[%emt 0:00:02]} 31. Nc6 {
[%emt 0:00:02]} Rxd1+ {[%emt 0:00:02]} 32. Rxd1 {[%emt 0:00:00]} Rb6 {[%emt 0:
00:01]} 33. Nd8+ {[%emt 0:00:01]} Kg8 {[%emt 0:00:02]} 34. Bf3 {[%emt 0:00:05]}
Rd6 {[%emt 0:00:02]} 35. Rh1 {[%emt 0:00:05]} Nf8 {[%emt 0:00:03]} 36. g6 {
[%emt 0:00:02]} Rxd8 {[%emt 0:00:02]} 37. gxh7+ {[%emt 0:00:02]} Kh8 {[%emt 0:
00:01]} 38. Qh5 {[%emt 0:00:01]} Qe7 {[%emt 0:00:03]} 39. Rg1 {[%emt 0:00:02]}
Bb7 {[%emt 0:00:02]} 40. Bxb7 {[%emt 0:00:05]} Qxb7 {[%emt 0:00:02]} 41. Qg5 {
[%emt 0:00:00]} Re8 {[%emt 0:00:02] Norinkeviciute, Rasa won by resignation} 0-1

[Event "Live Chess"]
[Site "Chess.com"]
[Date "2020.05.16"]
[Round "1.12"]
[White "Norinkeviciute, Rasa"]
[Black "Keetman, Keetman, Maaikee"]
[Result "1-0"]
[ECO "A13"]
[WhiteElo "2112"]
[BlackElo "2135"]
[PlyCount "57"]
[EventDate "2020.??.??"]
[TimeControl "180+2"]
[WhiteClock "0:00:29"]
[BlackClock "0:00:38"]

1. c4 {[%emt 0:00:02]} e6 {[%emt 0:00:04]} 2. e3 {[%emt 0:00:02]} d5 {[%emt 0:
00:02]} 3. cxd5 {[%emt 0:00:08]} exd5 {[%emt 0:00:01]} 4. Nf3 {[%emt 0:00:01]}
Nf6 {[%emt 0:00:02]} 5. b3 {[%emt 0:00:05]} Bd6 {[%emt 0:00:05]} 6. Bb2 {
[%emt 0:00:01]} O-O {[%emt 0:00:01]} 7. Be2 {[%emt 0:00:02]} c5 {[%emt 0:00:01]
} 8. Qc2 {[%emt 0:00:09]} Nc6 {[%emt 0:00:06]} 9. a3 {[%emt 0:00:04]} h6 {
[%emt 0:00:12]} 10. h3 {[%emt 0:00:03]} Re8 {[%emt 0:00:02]} 11. O-O {[%emt 0:
00:07]} Qe7 {[%emt 0:00:06]} 12. d4 {[%emt 0:00:04]} cxd4 {[%emt 0:00:06]} 13.
Nxd4 {[%emt 0:00:04]} Bd7 {[%emt 0:00:19]} 14. b4 {[%emt 0:00:09]} Rac8 {
[%emt 0:00:04]} 15. Qb3 {[%emt 0:00:03]} Ne5 {[%emt 0:00:13]} 16. Nd2 {[%emt 0:
00:04]} a6 {[%emt 0:00:06]} 17. Rac1 {[%emt 0:00:04]} b5 {[%emt 0:00:01]} 18.
N2f3 {[%emt 0:00:25]} Nc4 {[%emt 0:00:06]} 19. Ba1 {[%emt 0:00:12]} Ne4 {
[%emt 0:00:06]} 20. Rfd1 {[%emt 0:00:25]} f5 {[%emt 0:00:10]} 21. Bf1 {[%emt 0:
00:11]} f4 {[%emt 0:00:02]} 22. exf4 {[%emt 0:00:08]} Bxf4 {[%emt 0:00:00]} 23.
Rc2 {[%emt 0:00:01]} Qf7 {[%emt 0:00:13]} 24. Qd3 {[%emt 0:00:03]} Qh5 {
[%emt 0:00:18]} 25. Ne2 {[%emt 0:00:10]} Bg5 {[%emt 0:00:54]} 26. Nxg5 {
[%emt 0:00:03]} Nxg5 {[%emt 0:00:04]} 27. Qxd5+ {[%emt 0:00:17]} Be6 {[%emt 0:
00:01]} 28. Qd4 {[%emt 0:00:13]} Bxh3 {[%emt 0:00:05]} 29. Qxg7# {[%emt 0:00:
02] Norinkeviciute, Rasa won by checkmate} 1-0

[Event "Live Chess"]
[Site "Chess.com"]
[Date "2020.05.16"]
[Round "1.13"]
[White "Keetman, Keetman, Maaikee"]
[Black "Norinkeviciute, Rasa"]
[Result "1-0"]
[ECO "B07"]
[WhiteElo "2146"]
[BlackElo "2079"]
[PlyCount "137"]
[EventDate "2020.??.??"]
[TimeControl "180+2"]
[WhiteClock "0:00:29"]
[BlackClock "0:00:30"]

1. e4 {[%emt 0:00:00]} d6 {[%emt 0:00:03]} 2. d4 {[%emt 0:00:03]} Nf6 {[%emt 0:
00:04]} 3. Nc3 {[%emt 0:00:03]} c6 {[%emt 0:00:01]} 4. Nf3 {[%emt 0:00:06]} Qc7
{[%emt 0:00:01]} 5. Bc4 {[%emt 0:00:10]} e6 {[%emt 0:00:17]} 6. Qe2 {[%emt 0:
00:14]} h6 {[%emt 0:00:08]} 7. e5 {[%emt 0:00:07]} dxe5 {[%emt 0:00:56]} 8.
dxe5 {[%emt 0:00:00]} Nd5 {[%emt 0:00:02]} 9. Bd2 {[%emt 0:00:15]} Be7 {
[%emt 0:00:06]} 10. O-O-O {[%emt 0:00:02]} a6 {[%emt 0:00:04]} 11. Ne4 {
[%emt 0:00:12]} b5 {[%emt 0:00:08]} 12. Bd3 {[%emt 0:00:12]} Bb7 {[%emt 0:00:
07]} 13. g4 {[%emt 0:00:20]} Nd7 {[%emt 0:00:04]} 14. Ng3 {[%emt 0:00:36]}
O-O-O {[%emt 0:00:13]} 15. h4 {[%emt 0:00:05]} c5 {[%emt 0:00:04]} 16. c4 {
[%emt 0:00:03]} Nb4 {[%emt 0:00:43]} 17. Bxb4 {[%emt 0:00:32]} cxb4 {[%emt 0:
00:02]} 18. Kb1 {[%emt 0:00:01]} bxc4 {[%emt 0:00:03]} 19. Bxc4 {[%emt 0:00:04]
} Nc5 {[%emt 0:00:02]} 20. Rc1 {[%emt 0:00:03]} Kb8 {[%emt 0:00:18]} 21. Rhe1 {
[%emt 0:00:02]} Qb6 {[%emt 0:00:03]} 22. g5 {[%emt 0:00:05]} Rc8 {[%emt 0:00:
02]} 23. g6 {[%emt 0:00:04]} fxg6 {[%emt 0:00:03]} 24. Nd4 {[%emt 0:00:04]}
Rhd8 {[%emt 0:00:04]} 25. Red1 {[%emt 0:00:11]} Bxh4 {[%emt 0:00:02]} 26. Qg4 {
[%emt 0:00:02]} Bg5 {[%emt 0:00:03]} 27. f4 {[%emt 0:00:02]} Be7 {[%emt 0:00:
01]} 28. Qxg6 {[%emt 0:00:03]} Bf8 {[%emt 0:00:02]} 29. Nxe6 {[%emt 0:00:04]}
Nxe6 {[%emt 0:00:03]} 30. Bxe6 {[%emt 0:00:04]} Rxc1+ {[%emt 0:00:01]} 31. Rxc1
{[%emt 0:00:00]} Ka7 {[%emt 0:00:02]} 32. f5 {[%emt 0:00:04]} Qe3 {[%emt 0:00:
03]} 33. Qg4 {[%emt 0:00:07]} Qd3+ {[%emt 0:00:02]} 34. Ka1 {[%emt 0:00:02]}
Qd2 {[%emt 0:00:01]} 35. Qc4 {[%emt 0:00:03]} Qg5 {[%emt 0:00:04]} 36. Ne4 {
[%emt 0:00:02]} Qf4 {[%emt 0:00:02]} 37. Nd6 {[%emt 0:00:09]} Bxd6 {[%emt 0:00:
02]} 38. Qxf4 {[%emt 0:00:02]} Bxe5 {[%emt 0:00:02]} 39. Qf2+ {[%emt 0:00:01]}
Ka8 {[%emt 0:00:03]} 40. Qe2 {[%emt 0:00:00]} Bf6 {[%emt 0:00:01]} 41. Qh5 {
[%emt 0:00:02]} Rb8 {[%emt 0:00:02]} 42. Rb1 {[%emt 0:00:01]} Ka7 {[%emt 0:00:
02]} 43. Qf7 {[%emt 0:00:01]} Rd8 {[%emt 0:00:02]} 44. Qc7 {[%emt 0:00:02]} Rb8
{[%emt 0:00:01]} 45. Bd5 {[%emt 0:00:01]} a5 {[%emt 0:00:02]} 46. Qxa5+ {
[%emt 0:00:01]} Ba6 {[%emt 0:00:01]} 47. Qc5+ {[%emt 0:00:02]} Rb6 {[%emt 0:00:
02]} 48. Qc7+ {[%emt 0:00:01]} Bb7 {[%emt 0:00:01]} 49. Bxb7 {[%emt 0:00:01]}
Rxb7 {[%emt 0:00:01]} 50. Qa5+ {[%emt 0:00:01]} Kb8 {[%emt 0:00:01]} 51. a3 {
[%emt 0:00:01]} bxa3 {[%emt 0:00:02]} 52. Qxa3 {[%emt 0:00:03]} Ra7 {[%emt 0:
00:01]} 53. Qxa7+ {[%emt 0:00:01]} Kxa7 {[%emt 0:00:01]} 54. Ka2 {[%emt 0:00:
00]} Kb6 {[%emt 0:00:01]} 55. b4 {[%emt 0:00:01]} Kb5 {[%emt 0:00:01]} 56. Kb3
{[%emt 0:00:00]} h5 {[%emt 0:00:01]} 57. Rh1 {[%emt 0:00:02]} h4 {[%emt 0:00:
01]} 58. Rh3 {[%emt 0:00:01]} Be7 {[%emt 0:00:01]} 59. Re3 {[%emt 0:00:02]} Bf6
{[%emt 0:00:02]} 60. Rd3 {[%emt 0:00:03]} Be5 {[%emt 0:00:02]} 61. Rd5+ {
[%emt 0:00:01]} Kc6 {[%emt 0:00:01]} 62. Rxe5 {[%emt 0:00:00]} h3 {[%emt 0:00:
01]} 63. Re3 {[%emt 0:00:02]} Kd6 {[%emt 0:00:02]} 64. Rxh3 {[%emt 0:00:01]}
Ke5 {[%emt 0:00:01]} 65. b5 {[%emt 0:00:02]} Kxf5 {[%emt 0:00:01]} 66. b6 {
[%emt 0:00:01]} g5 {[%emt 0:00:01]} 67. b7 {[%emt 0:00:01]} g4 {[%emt 0:00:01]}
68. Rg3 {[%emt 0:00:01]} Kf4 {[%emt 0:00:01]} 69. Rxg4+ {[%emt 0:00:01]
Keetman, Keetman, Maaikee won on time} 1-0

[Event "Live Chess"]
[Site "Chess.com"]
[Date "2020.05.16"]
[Round "1.14"]
[White "Norinkeviciute, Rasa"]
[Black "Keetman, Keetman, Maaikee"]
[Result "1-0"]
[ECO "A03"]
[WhiteElo "2116"]
[BlackElo "2120"]
[PlyCount "57"]
[EventDate "2020.??.??"]
[TimeControl "180+2"]
[WhiteClock "0:00:08"]
[BlackClock "0:00:16"]

1. f4 {[%emt 0:00:00]} d5 {[%emt 0:00:04]} 2. Nf3 {[%emt 0:00:02]} c5 {[%emt 0:
00:02]} 3. g3 {[%emt 0:00:02]} Nc6 {[%emt 0:00:02]} 4. Bg2 {[%emt 0:00:01]} Nf6
{[%emt 0:00:05]} 5. d3 {[%emt 0:00:03]} g6 {[%emt 0:00:07]} 6. O-O {[%emt 0:00:
02]} Bg7 {[%emt 0:00:01]} 7. Nc3 {[%emt 0:00:13]} O-O {[%emt 0:00:05]} 8. h3 {
[%emt 0:00:01]} Re8 {[%emt 0:00:06]} 9. e4 {[%emt 0:00:25]} e5 {[%emt 0:00:52]}
10. Nxe5 {[%emt 0:00:19]} Nxe5 {[%emt 0:00:12]} 11. fxe5 {[%emt 0:00:01]} Rxe5
{[%emt 0:00:03]} 12. Bf4 {[%emt 0:00:04]} Re8 {[%emt 0:00:10]} 13. exd5 {
[%emt 0:00:07]} Nh5 {[%emt 0:00:05]} 14. Qf3 {[%emt 0:00:12]} Bd4+ {[%emt 0:00:
21]} 15. Kh2 {[%emt 0:00:02]} Qf6 {[%emt 0:00:21]} 16. Bd2 {[%emt 0:00:16]} Qd6
{[%emt 0:00:13]} 17. Ne4 {[%emt 0:00:07]} Qxd5 {[%emt 0:00:15]} 18. c3 {
[%emt 0:00:45]} Bg7 {[%emt 0:00:08]} 19. g4 {[%emt 0:00:18]} Be5+ {[%emt 0:00:
06]} 20. Kg1 {[%emt 0:00:11]} Kh8 {[%emt 0:00:20]} 21. gxh5 {[%emt 0:00:03]}
gxh5 {[%emt 0:00:01]} 22. Qxf7 {[%emt 0:00:09]} Qd8 {[%emt 0:00:01]} 23. Qxh5 {
[%emt 0:00:07]} Bc7 {[%emt 0:00:03]} 24. Bg5 {[%emt 0:00:04]} Qxd3 {[%emt 0:00:
02]} 25. Bf6+ {[%emt 0:00:02]} Kg8 {[%emt 0:00:01]} 26. Qg5+ {[%emt 0:00:02]}
Kf7 {[%emt 0:00:02]} 27. Qg7+ {[%emt 0:00:02]} Ke6 {[%emt 0:00:01]} 28. Ng5+ {
[%emt 0:00:02]} Kd6 {[%emt 0:00:02]} 29. Rad1 {[%emt 0:00:02] Norinkeviciute, Rasa won by
resignation} 1-0

[Event "Live Chess"]
[Site "Chess.com"]
[Date "2020.05.16"]
[Round "1.21"]
[White "Bayat, Shohreh"]
[Black "Dicen, Imogen"]
[Result "1-0"]
[ECO "B50"]
[WhiteElo "2043"]
[BlackElo "1852"]
[PlyCount "161"]
[EventDate "2020.??.??"]
[TimeControl "180+2"]
[WhiteClock "0:01:10"]
[BlackClock "0:02:20"]

1. e4 {[%emt 0:00:00]} c5 {[%emt 0:00:02]} 2. Nf3 {[%emt 0:00:03]} Nc6 {
[%emt 0:00:02]} 3. c3 {[%emt 0:00:02]} d6 {[%emt 0:00:01]} 4. Bd3 {[%emt 0:00:
02]} Nf6 {[%emt 0:00:02]} 5. Bc2 {[%emt 0:00:01]} e5 {[%emt 0:00:01]} 6. d3 {
[%emt 0:00:01]} Bg4 {[%emt 0:00:02]} 7. Nbd2 {[%emt 0:00:02]} Be7 {[%emt 0:00:
01]} 8. h3 {[%emt 0:00:01]} Be6 {[%emt 0:00:03]} 9. O-O {[%emt 0:00:03]} O-O {
[%emt 0:00:01]} 10. Re1 {[%emt 0:00:04]} Nd7 {[%emt 0:00:02]} 11. Nf1 {[%emt 0:
00:01]} f5 {[%emt 0:00:02]} 12. exf5 {[%emt 0:00:17]} Bxf5 {[%emt 0:00:02]} 13.
Ng3 {[%emt 0:00:03]} Be6 {[%emt 0:00:09]} 14. Be3 {[%emt 0:00:05]} Nf6 {
[%emt 0:00:13]} 15. d4 {[%emt 0:00:02]} cxd4 {[%emt 0:00:03]} 16. cxd4 {
[%emt 0:00:01]} exd4 {[%emt 0:00:01]} 17. Nxd4 {[%emt 0:00:03]} Nxd4 {[%emt 0:
00:02]} 18. Bxd4 {[%emt 0:00:02]} Bf7 {[%emt 0:00:14]} 19. Bc3 {[%emt 0:00:05]}
d5 {[%emt 0:00:07]} 20. Qd3 {[%emt 0:00:06]} Bg6 {[%emt 0:00:08]} 21. Qd2 {
[%emt 0:00:03]} Bxc2 {[%emt 0:00:10]} 22. Qxc2 {[%emt 0:00:00]} Qd7 {[%emt 0:
00:02]} 23. Rad1 {[%emt 0:00:03]} Rad8 {[%emt 0:00:05]} 24. Qf5 {[%emt 0:00:10]
} Qxf5 {[%emt 0:00:05]} 25. Nxf5 {[%emt 0:00:00]} Bc5 {[%emt 0:00:01]} 26. Ne7+
{[%emt 0:00:05]} Bxe7 {[%emt 0:00:08]} 27. Rxe7 {[%emt 0:00:00]} Rf7 {[%emt 0:
00:07]} 28. Bxf6 {[%emt 0:00:05]} gxf6 {[%emt 0:00:06]} 29. Re3 {[%emt 0:00:04]
} d4 {[%emt 0:00:04]} 30. Red3 {[%emt 0:00:01]} Rfd7 {[%emt 0:00:01]} 31. f4 {
[%emt 0:00:01]} Kf7 {[%emt 0:00:01]} 32. Kf2 {[%emt 0:00:01]} b6 {[%emt 0:00:
04]} 33. Kf3 {[%emt 0:00:01]} f5 {[%emt 0:00:03]} 34. g4 {[%emt 0:00:02]} Kf6 {
[%emt 0:00:04]} 35. Re1 {[%emt 0:00:05]} Rd5 {[%emt 0:00:09]} 36. Re2 {[%emt 0:
00:06]} h6 {[%emt 0:00:08]} 37. Rc2 {[%emt 0:00:03]} R8d7 {[%emt 0:00:04]} 38.
Rc8 {[%emt 0:00:02]} fxg4+ {[%emt 0:00:03]} 39. hxg4 {[%emt 0:00:02]} Kg6 {
[%emt 0:00:03]} 40. f5+ {[%emt 0:00:04]} Kf6 {[%emt 0:00:03]} 41. Kf4 {[%emt 0:
00:06]} R5d6 {[%emt 0:00:04]} 42. Rc2 {[%emt 0:00:10]} Kg7 {[%emt 0:00:08]} 43.
Rcd2 {[%emt 0:00:01]} Kf6 {[%emt 0:00:02]} 44. Ke4 {[%emt 0:00:02]} Re7+ {
[%emt 0:00:02]} 45. Kf4 {[%emt 0:00:02]} Red7 {[%emt 0:00:02]} 46. Rh2 {
[%emt 0:00:01]} Kg7 {[%emt 0:00:02]} 47. g5 {[%emt 0:00:02]} hxg5+ {[%emt 0:00:
03]} 48. Kxg5 {[%emt 0:00:00]} Rd5 {[%emt 0:00:03]} 49. Rh4 {[%emt 0:00:05]}
Kg8 {[%emt 0:00:06]} 50. Re4 {[%emt 0:00:09]} Kf7 {[%emt 0:00:02]} 51. Re2 {
[%emt 0:00:05]} Kg8 {[%emt 0:00:04]} 52. Kg6 {[%emt 0:00:04]} R5d6+ {[%emt 0:
00:07]} 53. f6 {[%emt 0:00:02]} Kf8 {[%emt 0:00:08]} 54. Rh2 {[%emt 0:00:01]}
Kg8 {[%emt 0:00:03]} 55. Rdh3 {[%emt 0:00:04]} Rxf6+ {[%emt 0:00:07]} 56. Kxf6
{[%emt 0:00:01]} Rf7+ {[%emt 0:00:02]} 57. Ke5 {[%emt 0:00:02]} Kg7 {[%emt 0:
00:04]} 58. Rh7+ {[%emt 0:00:02]} Kg6 {[%emt 0:00:02]} 59. Rxf7 {[%emt 0:00:01]
} Kxf7 {[%emt 0:00:01]} 60. Kxd4 {[%emt 0:00:00]} Ke7 {[%emt 0:00:01]} 61. Rh7+
{[%emt 0:00:01]} Kd6 {[%emt 0:00:02]} 62. Rxa7 {[%emt 0:00:00]} Kc6 {[%emt 0:
00:02]} 63. Rh7 {[%emt 0:00:01]} Kb5 {[%emt 0:00:01]} 64. Kc3 {[%emt 0:00:02]}
Ka4 {[%emt 0:00:02]} 65. Ra7+ {[%emt 0:00:02]} Kb5 {[%emt 0:00:02]} 66. a4+ {
[%emt 0:00:03]} Kc6 {[%emt 0:00:02]} 67. b4 {[%emt 0:00:01]} Kd6 {[%emt 0:00:
02]} 68. a5 {[%emt 0:00:02]} bxa5 {[%emt 0:00:03]} 69. bxa5 {[%emt 0:00:00]}
Kc6 {[%emt 0:00:01]} 70. Kb4 {[%emt 0:00:02]} Kd6 {[%emt 0:00:03]} 71. Rb7 {
[%emt 0:00:01]} Kc6 {[%emt 0:00:01]} 72. a6 {[%emt 0:00:00]} Kd6 {[%emt 0:00:
02]} 73. a7 {[%emt 0:00:01]} Kc6 {[%emt 0:00:01]} 74. a8=Q {[%emt 0:00:01]} Kd6
{[%emt 0:00:01]} 75. Qd8+ {[%emt 0:00:01]} Kc6 {[%emt 0:00:02]} 76. Qc8+ {
[%emt 0:00:01]} Kd6 {[%emt 0:00:01]} 77. Rd7+ {[%emt 0:00:00]} Ke6 {[%emt 0:00:
01]} 78. Qe8+ {[%emt 0:00:00]} Kf6 {[%emt 0:00:00]} 79. Rf7+ {[%emt 0:00:01]}
Kg6 {[%emt 0:00:01]} 80. Qg8+ {[%emt 0:00:00]} Kh6 {[%emt 0:00:02]} 81. Rh7# {
[%emt 0:00:00] Bayat, Shohreh won by checkmate} 1-0

[Event "Live Chess"]
[Site "Chess.com"]
[Date "2020.05.16"]
[Round "1.22"]
[White "Dicen, Imogen"]
[Black "Bayat, Shohreh"]
[Result "0-1"]
[ECO "D35"]
[WhiteElo "1846"]
[BlackElo "2047"]
[PlyCount "134"]
[EventDate "2020.??.??"]
[TimeControl "180+2"]
[WhiteClock "0:01:14"]
[BlackClock "0:00:33"]

1. d4 {[%emt 0:00:00]} d5 {[%emt 0:00:04]} 2. c4 {[%emt 0:00:01]} c6 {[%emt 0:
00:01]} 3. Nc3 {[%emt 0:00:01]} e6 {[%emt 0:00:01]} 4. Bf4 {[%emt 0:00:02]} Bd6
{[%emt 0:00:03]} 5. Bxd6 {[%emt 0:00:02]} Qxd6 {[%emt 0:00:00]} 6. cxd5 {
[%emt 0:00:01]} exd5 {[%emt 0:00:02]} 7. Nf3 {[%emt 0:00:01]} Nf6 {[%emt 0:00:
01]} 8. e3 {[%emt 0:00:01]} O-O {[%emt 0:00:01]} 9. Be2 {[%emt 0:00:01]} Bf5 {
[%emt 0:00:03]} 10. O-O {[%emt 0:00:02]} Nbd7 {[%emt 0:00:01]} 11. Rc1 {
[%emt 0:00:04]} Ne4 {[%emt 0:00:02]} 12. Nd2 {[%emt 0:00:08]} Ndf6 {[%emt 0:00:
07]} 13. f3 {[%emt 0:00:01]} Nxd2 {[%emt 0:00:01]} 14. Qxd2 {[%emt 0:00:02]}
Rfe8 {[%emt 0:00:05]} 15. Rfe1 {[%emt 0:00:01]} Re7 {[%emt 0:00:02]} 16. Bd3 {
[%emt 0:00:03]} Bxd3 {[%emt 0:00:02]} 17. Qxd3 {[%emt 0:00:01]} Rae8 {[%emt 0:
00:01]} 18. Re2 {[%emt 0:00:01]} Re6 {[%emt 0:00:06]} 19. Rce1 {[%emt 0:00:02]}
Qe7 {[%emt 0:00:01]} 20. e4 {[%emt 0:00:08]} dxe4 {[%emt 0:00:35]} 21. fxe4 {
[%emt 0:00:02]} Rd8 {[%emt 0:00:18]} 22. d5 {[%emt 0:00:33]} cxd5 {[%emt 0:00:
04]} 23. exd5 {[%emt 0:00:06]} Rxe2 {[%emt 0:00:04]} 24. Rxe2 {[%emt 0:00:02]}
Qc5+ {[%emt 0:00:02]} 25. Kh1 {[%emt 0:00:17]} h6 {[%emt 0:00:19]} 26. h3 {
[%emt 0:00:02]} Qd6 {[%emt 0:00:19]} 27. Rd2 {[%emt 0:00:09]} g6 {[%emt 0:00:
03]} 28. Ne4 {[%emt 0:00:08]} Nxe4 {[%emt 0:00:10]} 29. Qxe4 {[%emt 0:00:02]}
Kg7 {[%emt 0:00:01]} 30. Qd4+ {[%emt 0:00:03]} Qf6 {[%emt 0:00:09]} 31. Qe3 {
[%emt 0:00:11]} Rd7 {[%emt 0:00:05]} 32. Kh2 {[%emt 0:00:08]} a6 {[%emt 0:00:
01]} 33. g3 {[%emt 0:00:06]} Re7 {[%emt 0:00:05]} 34. Qd3 {[%emt 0:00:08]} Rd7
{[%emt 0:00:02]} 35. Kg2 {[%emt 0:00:05]} Qe5 {[%emt 0:00:02]} 36. Qc3 {
[%emt 0:00:14]} Qxc3 {[%emt 0:00:05]} 37. bxc3 {[%emt 0:00:02]} b5 {[%emt 0:00:
01]} 38. Kf3 {[%emt 0:00:02]} f5 {[%emt 0:00:02]} 39. Kf4 {[%emt 0:00:06]} Kf6
{[%emt 0:00:01]} 40. h4 {[%emt 0:00:08]} g5+ {[%emt 0:00:01]} 41. hxg5+ {
[%emt 0:00:02]} hxg5+ {[%emt 0:00:00]} 42. Kf3 {[%emt 0:00:04]} Ke5 {[%emt 0:
00:01]} 43. Rh2 {[%emt 0:00:18]} Rxd5 {[%emt 0:00:04]} 44. Re2+ {[%emt 0:00:02]
} Kf6 {[%emt 0:00:03]} 45. Rc2 {[%emt 0:00:05]} Rc5 {[%emt 0:00:02]} 46. a3 {
[%emt 0:00:03]} Rc4 {[%emt 0:00:01]} 47. Ke3 {[%emt 0:00:02]} Ke5 {[%emt 0:00:
02]} 48. Kf3 {[%emt 0:00:03]} f4 {[%emt 0:00:02]} 49. gxf4+ {[%emt 0:00:03]}
Rxf4+ {[%emt 0:00:04]} 50. Kg3 {[%emt 0:00:02]} Kf5 {[%emt 0:00:01]} 51. Re2 {
[%emt 0:00:04]} Rc4 {[%emt 0:00:02]} 52. Rc2 {[%emt 0:00:02]} g4 {[%emt 0:00:
03]} 53. Rf2+ {[%emt 0:00:02]} Kg5 {[%emt 0:00:02]} 54. Rc2 {[%emt 0:00:03]} a5
{[%emt 0:00:01]} 55. Rc1 {[%emt 0:00:04]} b4 {[%emt 0:00:03]} 56. axb4 {
[%emt 0:00:02]} axb4 {[%emt 0:00:00]} 57. Kg2 {[%emt 0:00:02]} Rxc3 {[%emt 0:
00:04]} 58. Rb1 {[%emt 0:00:01]} b3 {[%emt 0:00:01]} 59. Kg1 {[%emt 0:00:04]}
g3 {[%emt 0:00:04]} 60. Kg2 {[%emt 0:00:01]} Kg4 {[%emt 0:00:01]} 61. Kg1 {
[%emt 0:00:02]} Rc2 {[%emt 0:00:02]} 62. Kf1 {[%emt 0:00:02]} b2 {[%emt 0:00:
02]} 63. Kg1 {[%emt 0:00:02]} Rc1+ {[%emt 0:00:01]} 64. Rxc1 {[%emt 0:00:02]}
bxc1=Q+ {[%emt 0:00:01]} 65. Kg2 {[%emt 0:00:01]} Qd2+ {[%emt 0:00:02]} 66. Kg1
{[%emt 0:00:02]} Qf2+ {[%emt 0:00:02]} 67. Kh1 {[%emt 0:00:01]} Qh2# {[%emt 0:
00:01] Bayat, Shohreh won by checkmate} 0-1

[Event "Live Chess"]
[Site "Chess.com"]
[Date "2020.05.16"]
[Round "1.23"]
[White "Bayat, Shohreh"]
[Black "Dicen, Imogen"]
[Result "1-0"]
[ECO "B22"]
[WhiteElo "2051"]
[BlackElo "1840"]
[PlyCount "75"]
[EventDate "2020.??.??"]
[TimeControl "180+2"]
[WhiteClock "0:01:01"]
[BlackClock "0:01:30"]

1. e4 {[%emt 0:00:01]} c5 {[%emt 0:00:02]} 2. Nf3 {[%emt 0:00:07]} Nc6 {
[%emt 0:00:02]} 3. c3 {[%emt 0:00:02]} d6 {[%emt 0:00:01]} 4. Bd3 {[%emt 0:00:
01]} e5 {[%emt 0:00:03]} 5. Bc2 {[%emt 0:00:02]} Nge7 {[%emt 0:00:02]} 6. d3 {
[%emt 0:00:01]} g6 {[%emt 0:00:04]} 7. O-O {[%emt 0:00:04]} Bg7 {[%emt 0:00:01]
} 8. Be3 {[%emt 0:00:05]} O-O {[%emt 0:00:01]} 9. Nbd2 {[%emt 0:00:01]} f5 {
[%emt 0:00:02]} 10. Nc4 {[%emt 0:00:16]} b5 {[%emt 0:00:07]} 11. Na3 {[%emt 0:
00:02]} a6 {[%emt 0:00:03]} 12. Bb3+ {[%emt 0:00:12]} d5 {[%emt 0:00:11]} 13.
exd5 {[%emt 0:00:07]} Nxd5 {[%emt 0:00:03]} 14. Bg5 {[%emt 0:00:04]} Qd6 {
[%emt 0:00:06]} 15. c4 {[%emt 0:00:15]} h6 {[%emt 0:00:14]} 16. cxd5 {[%emt 0:
00:08]} Nd4 {[%emt 0:00:06]} 17. Nxd4 {[%emt 0:00:06]} exd4 {[%emt 0:00:02]}
18. Bd2 {[%emt 0:00:05]} Kh7 {[%emt 0:00:02]} 19. Qf3 {[%emt 0:00:02]} f4 {
[%emt 0:00:04]} 20. Rae1 {[%emt 0:00:10]} g5 {[%emt 0:00:15]} 21. h3 {[%emt 0:
00:09]} Bf5 {[%emt 0:00:03]} 22. Nc2 {[%emt 0:00:11]} a5 {[%emt 0:00:07]} 23.
a4 {[%emt 0:00:07]} bxa4 {[%emt 0:00:07]} 24. Bxa4 {[%emt 0:00:02]} Rab8 {
[%emt 0:00:02]} 25. b3 {[%emt 0:00:01]} Ra8 {[%emt 0:00:05]} 26. Na3 {[%emt 0:
00:01]} h5 {[%emt 0:00:25]} 27. Nc4 {[%emt 0:00:03]} Qc7 {[%emt 0:00:19]} 28.
Qxh5+ {[%emt 0:00:02]} Bh6 {[%emt 0:00:04]} 29. d6 {[%emt 0:00:05]} Qd8 {
[%emt 0:00:08]} 30. Re7+ {[%emt 0:00:02]} Kg8 {[%emt 0:00:03]} 31. Qxh6 {
[%emt 0:00:03]} Qxe7 {[%emt 0:00:09]} 32. dxe7 {[%emt 0:00:02]} Rf7 {[%emt 0:
00:01]} 33. Qxg5+ {[%emt 0:00:03]} Kh8 {[%emt 0:00:05]} 34. e8=Q+ {[%emt 0:00:
01]} Rxe8 {[%emt 0:00:02]} 35. Bxe8 {[%emt 0:00:00]} Rf8 {[%emt 0:00:01]} 36.
Bg6 {[%emt 0:00:03]} Bxg6 {[%emt 0:00:04]} 37. Qxg6 {[%emt 0:00:00]} Rg8 {
[%emt 0:00:01]} 38. Qh6# {[%emt 0:00:01] Bayat, Shohreh won by checkmate} 1-0